fUST/lending_fUST_20241103
["ID","MTS","AMOUNT","RATE_DAILY","PERIOD"]
[341188003,1730571041534,-540.13846499,0.00030136,4]
[341188004,1730571041544,-511.68272845,0.00030136,4]
[341188005,1730571041555,-1493.83,0.00030136,4]
[341188006,1730571041565,-500.0,0.00030136,4]
[341188007,1730571041576,-758.29,0.00030136,4]
[341188008,1730571041587,-500.0,0.00030136,4]
[341188009,1730571041598,-500.0,0.00030136,4]
[341188010,1730571041610,-1850.22,0.00030136,4]
[341188011,1730571041620,-500.0,0.00030136,4]
[341188012,1730571041632,-347.65283181,0.00030136,4]
[341188013,1730571041643,-500.0,0.00030136,4]
[341188014,1730571041653,-500.0,0.00030136,4]
[341188015,1730571041664,-1857.54,0.00030136,2]
[341188016,1730571041675,-1857.54,0.00030136,2]
[341188017,1730571041686,-500.0,0.00030136,4]
[341188018,1730571041696,-1857.54,0.00030136,2]
[341188019,1730571041708,-1857.54,0.00030136,2]
[341188020,1730571041719,-1857.54,0.00030136,2]
[341188021,1730571041731,-1857.54,0.00030136,2]
[341188022,1730571041743,-1857.54,0.00030136,2]
[341188023,1730571041854,-1857.54,0.00030136,2]
[341188024,1730571041865,-1857.54,0.00030136,2]
[341188025,1730571041874,-1857.54,0.00030136,2]
[341188026,1730571041884,-1857.54,0.00030136,2]
[341188027,1730571041893,-1857.54,0.00030136,2]
[341188028,1730571041902,-1857.54,0.00030136,2]
[341188029,1730571041911,-1857.54,0.00030136,2]
[341188030,1730571041920,-261.900064,0.00030136,7]
[341188031,1730571041930,-398.94383911,0.00030136,4]
[341188032,1730571041939,-3834.73,0.00030136,3]
[341188033,1730571041949,-183.71723511,0.00030136,4]
[341188034,1730571041958,-500.0,0.00030136,4]
[341188035,1730571041968,-503.90556095,0.00030136,4]
[341188036,1730571041978,-500.0,0.00030136,4]
[341188037,1730571041987,-500.0,0.00030173,5]
[341188038,1730571041997,-500.0,0.00030173,5]
[341188039,1730571042007,-500.0,0.00030173,5]
[341188040,1730571042017,-500.0,0.00030173,5]
[341188041,1730571042028,-500.0,0.00030173,5]
[341188042,1730571042041,-500.0,0.00030173,5]
[341188043,1730571042050,-500.0,0.00030173,5]
[341188044,1730571042060,-500.0,0.00030173,5]
[341188045,1730571042069,-1857.54,0.00030199,2]
[341188046,1730571042080,-5765.48,0.000302,30]
[341188047,1730571042090,-167.092768,0.00030203,2]
[341188048,1730571042100,-1141.982543,0.00030203,2]
[341188049,1730571042113,-153.996106,0.00030203,2]
[341188050,1730571042123,-272.105184,0.00030203,2]
[341188051,1730571042132,-165.576505,0.00030203,2]
[341188052,1730571042141,-380.660848,0.00030203,2]
[341188053,1730571042152,-153.865844,0.00030203,2]
[341188054,1730571042162,-201.0,0.00030205,2]
[341188055,1730571042172,-1000.0,0.00030309,2]
[341188056,1730571042182,-587.0,0.0003036,2]
[341188057,1730571042192,-1857.54,0.00030372,2]
[341188058,1730571042202,-17633.42676737,0.00030373,21]
[341188059,1730571042211,-1878.78,0.000304,14]
[341188060,1730571042221,-7343.58,0.000304,30]
[341188061,1730571042230,-1857.54,0.00030408,2]
[341188063,1730571042240,-1857.54,0.00030409,2]
[341188064,1730571042248,-1857.54,0.00030409,2]
[341188065,1730571042258,-500.0,0.0003041,4]
[341188066,1730571042267,-500.0,0.0003041,4]
[341188067,1730571042277,-510.20229471,0.0003041,4]
[341188068,1730571042286,-517.41197981,0.0003041,4]
[341188069,1730571042296,-500.0,0.0003041,4]
[341188070,1730571042306,-500.0,0.0003041,4]
[341188071,1730571042315,-500.0,0.0003041,4]
[341188072,1730571042325,-512.58845374,0.0003041,4]
[341188073,1730571042335,-517.41543441,0.0003041,4]
[341188074,1730571042346,-500.0,0.0003041,4]
[341188075,1730571042356,-500.0,0.0003041,4]
[341188076,1730571042366,-502.67997744,0.0003041,4]
[341188077,1730571042375,-500.0,0.0003041,4]
[341188078,1730571042384,-500.0,0.0003041,4]
[341188079,1730571042394,-500.0,0.0003041,4]
[341188080,1730571042403,-500.0,0.0003041,4]
[341188081,1730571042412,-500.0,0.0003041,4]
[341188082,1730571042422,-500.0,0.0003041,4]
[341188083,1730571042431,-500.0,0.0003041,4]
[341188084,1730571042441,-500.0,0.0003041,4]
[341188085,1730571042450,-569.7,0.0003041,4]
[341188086,1730571042459,-500.0,0.0003041,4]
[341188087,1730571042469,-500.0,0.0003041,4]
[341188088,1730571042478,-500.0,0.0003041,4]
[341188090,1730571042488,-500.0,0.0003041,4]
[341188092,1730571042498,-500.0,0.0003041,4]
[341188094,1730571042507,-500.0,0.0003041,4]
[341188096,1730571042517,-500.0,0.0003041,4]
[341188098,1730571042527,-500.0,0.0003041,4]
[341188100,1730571042539,-500.0,0.0003041,2]
[341188102,1730571042549,-500.0,0.0003041,4]
[341188104,1730571042560,-500.0,0.0003041,4]
[341188106,1730571042570,-500.0,0.0003041,4]
[341188108,1730571042579,-500.0,0.0003041,4]
[341188110,1730571042588,-500.0,0.0003041,4]
[341188112,1730571042598,-544.21337309,0.0003041,4]
[341188114,1730571042607,-501.76212153,0.0003041,4]
[341188117,1730571042617,-500.0,0.0003041,4]
[341188119,1730571042627,-500.0,0.0003041,4]
[341188121,1730571042636,-500.0,0.0003041,4]
[341188123,1730571042645,-500.0,0.0003041,4]
[341188125,1730571042657,-500.0,0.0003041,4]
[341188127,1730571042666,-507.72890069,0.0003041,4]
[341188129,1730571042676,-506.963845,0.0003041,4]
[341188131,1730571042685,-500.2,0.0003041,4]
[341188133,1730571042695,-500.0,0.0003041,4]
[341188135,1730571042704,-788.87,0.0003041,4]
[341188137,1730571042714,-500.0,0.0003041,4]
[341188139,1730571042723,-500.0,0.0003041,4]
[341188141,1730571042732,-2190.77,0.0003041,4]
[341188143,1730571042745,-500.0,0.0003041,4]
[341188144,1730571042756,-500.0,0.0003041,4]
[341188145,1730571042767,-508.9499792,0.0003041,4]
[341188146,1730571042776,-500.0,0.0003041,4]
[341188147,1730571042785,-500.0,0.0003041,4]
[341188148,1730571042795,-621.6,0.0003041,4]
[341188149,1730571042804,-500.0,0.0003041,4]
[341188150,1730571042813,-500.0,0.0003041,4]
[341188151,1730571042822,-1213.29,0.0003041,4]
[341188152,1730571042832,-500.0,0.0003041,4]
[341188153,1730571042841,-500.0,0.0003041,4]
[341188154,1730571042851,-500.0,0.0003041,4]
[341188155,1730571042860,-500.0,0.0003041,4]
[341188157,1730571042870,-508.70673941,0.0003041,4]
[341188159,1730571042879,-500.0,0.0003041,4]
[341188161,1730571042888,-500.0,0.0003041,4]
[341188163,1730571042898,-500.0,0.0003041,4]
[341188165,1730571042908,-500.0,0.0003041,4]
[341188167,1730571042919,-500.0,0.0003041,4]
[341188168,1730571042930,-500.0,0.0003041,4]
[341188170,1730571042940,-500.0,0.0003041,4]
[341188171,1730571042949,-409.62973973,0.0003041,4]
[341188172,1730571042957,-1281.87,0.0003041,4]
[341188173,1730571042967,-500.0,0.0003041,4]
[341188174,1730571042976,-500.0,0.0003041,4]
[341188175,1730571042985,-500.0,0.0003041,4]
[341188176,1730571042994,-226.40697177,0.0003041,4]
[341188178,1730571043003,-1493.83,0.0003041,4]
[341188180,1730571043013,-500.0,0.0003041,4]
[341188181,1730571043023,-758.29,0.0003041,4]
[341188183,1730571043033,-500.0,0.0003041,4]
[341188185,1730571043043,-1850.22,0.0003041,4]
[341188187,1730571043052,-500.0,0.0003041,4]
[341188188,1730571043062,-500.0,0.0003041,4]
[341188189,1730571043071,-500.0,0.0003041,4]
[341188190,1730571043080,-3834.73,0.0003041,3]
[341188191,1730571043089,-500.0,0.0003041,4]
[341188192,1730571043099,-500.0,0.0003041,4]
[341188193,1730571043113,-500.0,0.00030473,5]
[341188195,1730571043123,-500.0,0.00030473,5]
[341188197,1730571043134,-500.0,0.00030473,5]
[341188199,1730571043143,-1857.54,0.00030492,2]
[341188201,1730571043152,-1857.54,0.00030492,2]
[341188203,1730571043161,-1857.54,0.00030492,2]
[341188205,1730571043170,-1857.54,0.00030492,2]
[341188207,1730571043179,-1857.7745029,0.00030492,2]
[341188209,1730571043189,-303.0898104,0.00030493,2]
[341188211,1730571043198,-303.0898104,0.00030493,2]
[341188212,1730571043207,-303.0898104,0.00030493,2]
[341188213,1730571043216,-208.7141814,0.00030493,2]
[341188214,1730571043227,-2536.69231956,0.00030542,2]
[341188215,1730571043236,-1141.982543,0.0003058,2]
[341188216,1730571043247,-153.996106,0.0003058,2]
[341188217,1730571043256,-272.105184,0.0003058,2]
[341188218,1730571043265,-380.660848,0.0003058,2]
[341188219,1730571043275,-1500.0,0.00030641,5]
[341188220,1730571043284,-500.0,0.00030684,4]
[341188221,1730571043293,-500.0,0.00030684,4]
[341188222,1730571043304,-500.0,0.00030684,4]
[341188223,1730571043314,-500.0,0.00030684,4]
[341188224,1730571043323,-500.0,0.00030684,4]
[341188225,1730571043332,-500.0,0.00030684,4]
[341188226,1730571043342,-500.0,0.00030684,4]
[341188227,1730571043351,-500.0,0.00030684,4]
[341188228,1730571043361,-500.0,0.00030684,4]
[341188229,1730571043370,-517.14394288,0.00030684,4]
[341188230,1730571043379,-500.0,0.00030684,4]
[341188231,1730571043389,-569.7,0.00030684,4]
[341188232,1730571043398,-500.0,0.00030684,4]
[341188233,1730571043407,-500.0,0.00030684,4]
[341188234,1730571043417,-500.0,0.00030684,4]
[341188235,1730571043426,-500.0,0.00030684,4]
[341188236,1730571043436,-500.0,0.00030684,4]
[341188237,1730571043445,-500.0,0.00030684,2]
[341188238,1730571043455,-556.59426393,0.00030684,4]
[341188239,1730571043464,-539.04272119,0.00030684,4]
[341188240,1730571043474,-499.65293041,0.00030684,4]
[341188241,1730571043483,-500.0,0.00030684,4]
[341188242,1730571043493,-500.0,0.00030684,4]
[341188243,1730571043502,-500.0,0.00030684,4]
[341188244,1730571043511,-500.0,0.00030684,4]
[341188245,1730571043520,-500.0,0.00030684,4]
[341188246,1730571043530,-500.2,0.00030684,4]
[341188247,1730571043539,-500.0,0.00030684,4]
[341188248,1730571043549,-788.87,0.00030684,4]
[341188249,1730571043558,-500.0,0.00030684,4]
[341188250,1730571043568,-510.71451716,0.00030684,4]
[341188251,1730571043577,-2190.77,0.00030684,4]
[341188252,1730571043586,-500.0,0.00030684,4]
[341188253,1730571043596,-500.0,0.00030684,4]
[341188254,1730571043606,-621.6,0.00030684,4]
[341188255,1730571043615,-500.0,0.00030684,4]
[341188256,1730571043624,-500.0,0.00030684,4]
[341188257,1730571043634,-1213.29,0.00030684,4]
[341188258,1730571043643,-500.0,0.00030684,4]
[341188259,1730571043652,-500.0,0.00030684,4]
[341188260,1730571043662,-648.10534151,0.00030684,4]
[341188261,1730571043672,-516.41049537,0.00030684,4]
[341188262,1730571043682,-500.0,0.00030684,4]
[341188263,1730571043692,-500.0,0.00030684,4]
[341188264,1730571043701,-415.3,0.00030684,4]
[341188265,1730571043710,-297.1001907,0.00030684,4]
[341188266,1730571043719,-1281.87,0.00030684,4]
[341188267,1730571043728,-500.0,0.00030684,4]
[341188268,1730571043738,-1493.83,0.00030684,4]
[341188269,1730571043751,-500.0,0.00030684,4]
[341188270,1730571043760,-758.29,0.00030684,4]
[341188271,1730571043770,-1850.22,0.00030684,4]
[341188272,1730571043779,-500.0,0.00030684,4]
[341188273,1730571043788,-500.0,0.00030684,4]
[341188274,1730571043798,-512.72073326,0.00030684,4]
[341188275,1730571043807,-3834.73,0.00030684,3]
[341188276,1730571043817,-500.0,0.00030684,4]
[341188277,1730571043826,-500.0,0.00030684,4]
[341188278,1730571043835,-4000.0,0.00030858,2]
[341188279,1730571043844,-54804.14882605,0.000309,2]
[341188293,1730571471213,164.84464,0.00013973,2]
[341188320,1730572087563,164.84464,0.00013973,2]
[341188324,1730572121556,4001.09363369,0.00033603,30]
[341188400,1730572232232,-1198.50311793,0.00020377,2]
[341188401,1730572232242,-164.84464,0.00020807,2]
[341188402,1730572232252,-31.84801558,0.00025,2]
[341188403,1730572232267,-816.60841905,0.00025,2]
[341188404,1730572232276,-300.0,0.00025089,2]
[341188405,1730572232286,-300.0,0.00025089,2]
[341188406,1730572232300,-201.16567063,0.00025089,10]
[341188407,1730572232309,-915.1264558,0.0002509,2]
[341188458,1730572246027,-31941.47775856,0.0002509,2]
[341188459,1730572246037,-158.73293163,0.000251,10]
[341188460,1730572246048,-190.97222222,0.00025559,2]
[341188461,1730572246059,-500.0,0.00025567,2]
[341188462,1730572246070,-381.3769843,0.0002646,2]
[341188463,1730572246080,-21704.71196754,0.0002646,2]
[341188465,1730572725406,164.84464,0.00013973,2]
[341188545,1730573432172,-164.84464,0.00021661,2]
[341188547,1730573432182,-187.785344,0.00024663,2]
[341188548,1730573432191,-193.085172,0.00024751,2]
[341188549,1730573432201,-193.085172,0.00024819,2]
[341188550,1730573432212,-193.085172,0.00024887,2]
[341188551,1730573432222,-193.085172,0.00024955,2]
[341188552,1730573432231,-125.59375324,0.00025,2]
[341188558,1730573438403,-39.40624676,0.00025,2]
[341188559,1730573438412,-193.085172,0.00025023,2]
[341188560,1730573438422,-193.085172,0.0002509,2]
[341188561,1730573438432,-193.085172,0.00025158,2]
[341188562,1730573438442,-193.085172,0.00025226,2]
[341188563,1730573438451,-31.31539481,0.00025294,2]
[341188564,1730573438463,-161.76977719,0.00025294,2]
[341188565,1730573438471,-193.085172,0.00025362,2]
[341188566,1730573438481,-193.085172,0.0002543,2]
[341188567,1730573438490,-193.085172,0.00025498,2]
[341188568,1730573438502,-300.0,0.00025556,2]
[341188569,1730573438512,-1614.0615896,0.00025556,2]
[341188588,1730573440253,-3385.9384104,0.00025556,2]
[341188589,1730573440263,-300.0,0.00025556,2]
[341188590,1730573440272,-2709.92519664,0.00025557,2]
[341188591,1730573440284,-22190.07480336,0.00025557,2]
[341188592,1730573440293,-193.085172,0.00025566,2]
[341188593,1730573440302,-193.085172,0.00025634,2]
[341188594,1730573440312,-193.085172,0.00025701,2]
[341188595,1730573440331,-193.085172,0.00025769,2]
[341188596,1730573440341,-193.085172,0.00025837,2]
[341188597,1730573440351,-193.085172,0.00025905,2]
[341188598,1730573440362,-1585.43269976,0.00025941,2]
[341188599,1730573440373,-193.085172,0.00025973,2]
[341188600,1730573440384,-193.085172,0.00026041,2]
[341188601,1730573440393,-2417.80145918,0.00026087,2]
[341188614,1730573443476,-945.7001961,0.00026087,2]
[341188628,1730573758824,164.84464,0.00013973,2]
[341188667,1730574632447,-164.84464,0.00022759,2]
[341188668,1730574632460,-166.666667,0.00023575,2]
[341188669,1730574632473,-155.293,0.0002359,2]
[341188670,1730574632484,-166.666667,0.00023821,2]
[341188671,1730574632495,-447.0993444,0.0002386,2]
[341188672,1730574632507,-300.0,0.00023871,2]
[341188673,1730574632518,-300.0,0.00023871,2]
[341188674,1730574632531,-7406.6907138,0.00023872,2]
[341188682,1730574638692,-3016.71418326,0.00023872,2]
[341188688,1730574640498,-14476.59510294,0.00023872,2]
[341188689,1730574640508,-166.666666,0.0002396,2]
[341188690,1730574640517,-190.97222222,0.00024,2]
[341188691,1730574640527,-166.666667,0.00024067,2]
[341188692,1730574640536,-155.545,0.0002426,10]
[341188693,1730574640545,-166.666667,0.00024312,2]
[341188694,1730574640555,-256.6373018,0.00024393,2]
[341188695,1730574640564,-2087.695331,0.00024441,2]
[341188696,1730574640575,-302.0,0.00024504,2]
[341188697,1730574640584,-166.666667,0.00024558,2]
[341188698,1730574640593,-155.318,0.000246,2]
[341188699,1730574640602,-176.408133,0.00024622,2]
[341188700,1730574640612,-1387.25361229,0.00024704,2]
[341188701,1730574640621,-166.666667,0.00024804,2]
[341188702,1730574640630,-2087.695331,0.00025126,2]
[341188703,1730574640639,-1096.03993194,0.00025764,2]
[341188704,1730574640649,-2087.695331,0.00025811,2]
[341188705,1730574640659,-372.39843181,0.00025864,2]
[341188706,1730574640667,-420.0,0.0002589,2]
[341188707,1730574640677,-420.0,0.00026258,2]
[341188708,1730574640686,-1096.03993191,0.00026798,2]
[341188709,1730574640696,-500.0,0.00026988,2]
[341188710,1730574640705,-1387.25361225,0.00027161,2]
[341188711,1730574640714,-166.666666,0.00027226,2]
[341188712,1730574640723,-500.0,0.00027615,2]
[341188713,1730574640732,-500.0,0.00027615,2]
[341188714,1730574640742,-500.0,0.00027615,2]
[341188715,1730574640751,-500.0,0.00027615,2]
[341188716,1730574640760,-500.0,0.00027615,2]
[341188717,1730574640770,-500.0,0.00027615,2]
[341188718,1730574640780,-500.0,0.00027615,2]
[341188719,1730574640790,-500.0,0.00027615,2]
[341188720,1730574640801,-500.0,0.00027615,2]
[341188721,1730574640811,-359.61167412,0.00027615,2]
[341188722,1730574640824,-500.0,0.00027615,2]
[341188723,1730574640834,-500.0,0.00027615,2]
[341188724,1730574640845,-500.0,0.00027615,2]
[341188725,1730574640856,-500.0,0.00027615,2]
[341188726,1730574640866,-500.0,0.00027615,2]
[341188727,1730574640875,-500.0,0.00027615,2]
[341188728,1730574640884,-428.4679366,0.00027615,2]
[341188729,1730574640893,-500.0,0.00027615,2]
[341188730,1730574640903,-500.0,0.00027615,2]
[341188731,1730574640912,-152.17502955,0.00027615,2]
[341188732,1730574640937,-347.82497045,0.00027615,2]
[341188733,1730574640947,-500.0,0.00027615,2]
[341188734,1730574640956,-500.0,0.00027615,2]
[341188735,1730574640966,-500.0,0.00027615,2]
[341188736,1730574640975,-500.0,0.00027615,2]
[341188737,1730574640984,-316.21930837,0.00027615,2]
[341188738,1730574640994,-500.0,0.00027615,2]
[341188739,1730574641003,-500.0,0.00027615,2]
[341188740,1730574641012,-500.0,0.00027615,2]
[341188741,1730574641023,-500.0,0.00027615,2]
[341188742,1730574641034,-500.0,0.00027615,2]
[341188743,1730574641045,-500.0,0.00027615,2]
[341188744,1730574641055,-500.0,0.00027615,2]
[341188745,1730574641066,-500.0,0.00027615,2]
[341188746,1730574641076,-500.0,0.00027615,2]
[341188747,1730574641085,-500.0,0.00027615,2]
[341188748,1730574641094,-250.0,0.00027615,2]
[341188749,1730574641103,-250.0,0.00027615,2]
[341188750,1730574641113,-500.0,0.00027615,2]
[341188751,1730574641122,-500.0,0.00027615,2]
[341188752,1730574641131,-500.0,0.00027615,2]
[341188753,1730574641144,-500.0,0.00027615,2]
[341188754,1730574641154,-500.0,0.00027615,2]
[341188755,1730574641163,-500.0,0.00027615,2]
[341188756,1730574641172,-500.0,0.00027615,2]
[341188757,1730574641182,-500.0,0.00027615,2]
[341188758,1730574641191,-500.0,0.00027615,2]
[341188759,1730574641201,-500.0,0.00027615,2]
[341188760,1730574641210,-500.0,0.00027615,2]
[341188761,1730574641219,-500.0,0.00027615,2]
[341188762,1730574641228,-500.0,0.00027615,2]
[341188763,1730574641238,-500.0,0.00027615,2]
[341188764,1730574641247,-239.49238361,0.00027615,2]
[341188765,1730574641256,-500.0,0.00027615,2]
[341188766,1730574641266,-500.0,0.00027615,2]
[341188767,1730574641275,-500.0,0.00027615,2]
[341188768,1730574641285,-435.0,0.00027615,2]
[341188769,1730574641294,-500.0,0.00027615,2]
[341188770,1730574641304,-500.0,0.00027615,2]
[341188771,1730574641313,-500.0,0.00027615,2]
[341188772,1730574641324,-500.0,0.00027615,2]
[341188773,1730574641333,-500.0,0.00027615,2]
[341188774,1730574641343,-500.0,0.00027615,2]
[341188775,1730574641352,-500.0,0.00027615,2]
[341188776,1730574641362,-500.0,0.00027615,2]
[341188777,1730574641371,-500.0,0.00027615,2]
[341188778,1730574641380,-500.0,0.00027615,2]
[341188779,1730574641390,-500.0,0.00027615,2]
[341188780,1730574641400,-500.0,0.00027615,2]
[341188781,1730574641409,-500.0,0.00027615,2]
[341188782,1730574641418,-500.0,0.00027615,2]
[341188783,1730574641429,-500.0,0.00027615,2]
[341188784,1730574641438,-275.0,0.00027615,2]
[341188785,1730574641448,-500.0,0.00027615,2]
[341188786,1730574641458,-500.0,0.00027615,2]
[341188787,1730574641468,-500.0,0.00027615,2]
[341188788,1730574641477,-153.0,0.00027616,2]
[341188789,1730574641487,-153.0,0.00027616,2]
[341188790,1730574641496,-153.0,0.00027616,2]
[341188791,1730574641505,-153.0,0.00027616,2]
[341188792,1730574641515,-153.0,0.00027616,2]
[341188793,1730574641524,-153.0,0.00027616,2]
[341188794,1730574641533,-153.0,0.00027616,2]
[341188795,1730574641542,-153.0,0.00027616,2]
[341188796,1730574641552,-153.0,0.00027616,2]
[341188797,1730574641561,-153.0,0.00027616,2]
[341188798,1730574641571,-447.72991022,0.00027616,2]
[341188799,1730574641581,-265.03939846,0.00027657,2]
[341188800,1730574641591,-377.63856731,0.00027657,2]
[341188801,1730574641601,-193.0791604,0.00027657,2]
[341188802,1730574641611,-203.62245975,0.00027657,2]
[341188803,1730574641621,-175.1988722,0.00027657,2]
[341188804,1730574641630,-502.84952735,0.00027673,2]
[341188805,1730574641640,-500.0,0.00027673,5]
[341188806,1730574641651,-1096.03993191,0.00027832,2]
[341188807,1730574641661,-153.0,0.00028027,2]
[341188808,1730574641671,-153.0,0.00028027,2]
[341188809,1730574641680,-153.0,0.00028027,2]
[341188810,1730574641689,-153.0,0.00028027,2]
[341188811,1730574641699,-587.0,0.0002808,2]
[341188812,1730574641708,-245.867,0.0002833,2]
[341188813,1730574641717,-1142.0,0.0002833,2]
[341188814,1730574641726,-2394.0,0.0002833,2]
[341188815,1730574641735,-500.0,0.00028357,2]
[341188816,1730574641745,-7318.38971791,0.00028805,10]
[341188817,1730574641759,-2167.32622934,0.00028805,10]
[341188823,1730574643461,-302.0,0.00028805,10]
[341188840,1730574646432,-356.67218305,0.00022659,2]
[341188841,1730574646443,-11284.99405275,0.00028805,10]
[341188842,1730574646454,-211.079098,0.00028849,2]
[341188843,1730574646465,-211.079098,0.00028849,2]
[341188844,1730574646476,-302.9343744,0.00028849,2]
[341188845,1730574646486,-211.079098,0.00028849,2]
[341188846,1730574646496,-221.521665,0.00028855,2]
[341188847,1730574646508,-1096.03993191,0.00028866,2]
[341188848,1730574646518,-587.0,0.00028884,2]
[341188849,1730574646529,-1000.0,0.00029042,5]
[341188850,1730574646540,-151.0,0.00029286,3]
[341188851,1730574646551,-501.35430593,0.00029473,5]
[341188852,1730574646562,-502.0750427,0.00029473,5]
[341188853,1730574646572,-433.82940815,0.00029473,5]
[341188854,1730574646589,-500.0,0.00029473,5]
[341188855,1730574646598,-153.0,0.00029534,2]
[341188856,1730574646607,-153.0,0.00029534,2]
[341188857,1730574646616,-153.0,0.00029534,2]
[341188858,1730574646625,-153.0,0.00029534,2]
[341188859,1730574646634,-1387.25361225,0.00029617,2]
[341188860,1730574646643,-600.0,0.00029664,2]
[341188861,1730574646653,-153.0,0.00029671,2]
[341188862,1730574646662,-153.0,0.00029671,2]
[341188863,1730574646672,-153.0,0.00029671,2]
[341188864,1730574646683,-420.8049103,0.00029671,2]
[341188865,1730574646692,-211.079098,0.00029671,2]
[341188866,1730574646703,-181.3569153,0.00029671,2]
[341188867,1730574646714,-501.19865884,0.00029873,5]
[341188868,1730574646726,-36788.55,0.0002989,10]
[341188869,1730574646737,-9221.26633635,0.000299,2]
[341188870,1730574646747,-1096.03993191,0.000299,2]
[341188871,1730574646756,-500.0,0.00029973,5]
[341188872,1730574646765,-500.0,0.00029973,5]
[341188873,1730574646775,-500.0,0.00029973,5]
[341188874,1730574646784,-500.0,0.00029973,5]
[341188875,1730574646796,-500.0,0.00029973,5]
[341188876,1730574646807,-617.24045488,0.00029973,2]
[341188877,1730574646819,-30657.12,0.0002999,10]
[341188878,1730574646831,-160.0,0.00029999,10]
[341188879,1730574646843,-164.525,0.0003,2]
[341188880,1730574646856,-163.88925,0.0003,2]
[341188881,1730574646866,-151.0,0.0003,120]
[341188882,1730574646875,-151.0,0.0003,120]
[341188883,1730574646968,-110000.00000814,0.0003,2]
[341188884,1730574646978,-4200.5003,0.0003,7]
[341188885,1730574646987,-319.0,0.0003,120]
[341188886,1730574646997,-228.0,0.0003,2]
[341188887,1730574647006,-160.0,0.00030135,10]
[341188888,1730574647016,-500.0,0.00030136,4]
[341188889,1730574647025,-392.87122302,0.00030136,4]
[341188890,1730574647036,-500.0,0.00030136,4]
[341188891,1730574647047,-500.0,0.00030136,4]
[341188892,1730574647058,-500.0,0.00030136,4]
[341188893,1730574647068,-502.46152326,0.00030136,4]
[341188894,1730574647079,-500.0,0.00030136,2]
[341188895,1730574647088,-599.64051435,0.00030136,4]
[341188896,1730574647097,-500.0,0.00030136,4]
[341188897,1730574647106,-500.0,0.00030136,4]
[341188898,1730574647115,-500.0,0.00030136,4]
[341188899,1730574647125,-301.78,0.00030136,4]
[341188900,1730574647135,-500.0,0.00030136,2]
[341188901,1730574647144,-500.0,0.00030136,4]
[341188902,1730574647153,-510.01434787,0.00030136,4]
[341188903,1730574647162,-500.0,0.00030136,4]
[341188904,1730574647172,-500.0,0.00030136,4]
[341188905,1730574647180,-500.0,0.00030136,4]
[341188906,1730574647190,-500.0,0.00030136,4]
[341188907,1730574647199,-192.66,0.00030136,4]
[341188908,1730574647208,-1042.05,0.00030136,4]
[341188909,1730574647217,-500.0,0.00030136,4]
[341188910,1730574647227,-199.13016349,0.00030136,4]
[341188911,1730574647235,-663.5,0.00030136,4]
[341188912,1730574647245,-536.19775775,0.00030136,4]
[341188913,1730574647254,-434.6,0.00030136,4]
[341188914,1730574647263,-755.04,0.00030136,2]
[341188915,1730574647272,-755.04,0.00030136,2]
[341188916,1730574647282,-755.04,0.00030136,2]
[341188917,1730574647291,-755.04,0.00030136,2]
[341188918,1730574647300,-755.04,0.00030136,2]
[341188919,1730574647309,-755.04,0.00030136,2]